fUST/lending_fUST_20250729
["ID","MTS","AMOUNT","RATE_DAILY","PERIOD"]
[375925209,1753786263985,-251.9333661,0.00020821,2]
[375925210,1753786263995,-460.0,0.00020821,2]
[375925211,1753786264004,-460.0,0.00020821,2]
[375925212,1753786264013,-519.0947286,0.00020821,2]
[375925213,1753786264023,-460.0,0.00020821,2]
[375925214,1753786264032,-460.0,0.00020821,2]
[375925215,1753786264042,-151.0,0.00020821,2]
[375925216,1753786264051,-151.0,0.00020821,2]
[375925217,1753786264061,-464.29891029,0.00020821,2]
[375925218,1753786264070,-468.64768963,0.00020821,2]
[375925219,1753786264080,-460.0,0.00020821,2]
[375925220,1753786264090,-460.0,0.00020821,2]
[375925221,1753786264099,-201.76461175,0.00020821,2]
[375925222,1753786264109,-460.0,0.00020821,2]
[375925223,1753786264119,-460.0,0.00020821,2]
[375925224,1753786264129,-476.55111748,0.00020821,2]
[375925225,1753786264138,-460.0,0.00020821,2]
[375925226,1753786264148,-249.21428587,0.00020821,2]
[375925227,1753786264158,-281.869124,0.00020821,2]
[375925228,1753786264168,-281.869124,0.00020821,2]
[375925229,1753786264177,-460.0,0.00020821,2]
[375925230,1753786264187,-460.0,0.00020821,2]
[375925231,1753786264196,-558.73,0.00020821,2]
[375925232,1753786264206,-460.0,0.00020821,2]
[375925233,1753786264216,-460.0,0.00020821,2]
[375925234,1753786264226,-228.589995,0.00020821,2]
[375925235,1753786264236,-460.0,0.00020821,2]
[375925236,1753786264246,-460.0,0.00020821,2]
[375925237,1753786264255,-641.17,0.00020821,2]
[375925238,1753786264266,-460.0,0.00020821,2]
[375925239,1753786264275,-151.0,0.00020821,2]
[375925240,1753786264285,-564.54,0.00020821,2]
[375925241,1753786264297,-151.0,0.00020821,2]
[375925242,1753786264309,-460.0,0.00020821,2]
[375925243,1753786264319,-460.0,0.00020821,2]
[375925244,1753786264328,-151.0,0.00020821,2]
[375925245,1753786264337,-586.40050386,0.00020821,2]
[375925246,1753786264347,-460.0,0.00020821,2]
[375925247,1753786264356,-460.0,0.00020821,2]
[375925248,1753786264367,-460.0,0.00020821,2]
[375925249,1753786264379,-460.0,0.00020821,2]
[375925250,1753786264389,-460.0,0.00020821,2]
[375925251,1753786264399,-460.0,0.00020821,2]
[375925252,1753786264409,-3330.66,0.00020821,2]
[375925253,1753786264419,-460.0,0.00020821,2]
[375925254,1753786264429,-460.0,0.00020821,2]
[375925255,1753786264439,-889.55,0.00020821,2]
[375925256,1753786264449,-1469.59,0.00020821,2]
[375925257,1753786264460,-521.61747541,0.00020821,2]
[375925258,1753786264469,-631.4,0.00020821,2]
[375925259,1753786264481,-623.86,0.00020821,2]
[375925260,1753786264491,-460.0,0.00020821,2]
[375925261,1753786264500,-460.0,0.00020821,2]
[375925262,1753786264510,-460.0,0.00020821,2]
[375925263,1753786264519,-460.0,0.00020821,2]
[375925264,1753786264530,-460.0,0.00020821,2]
[375925265,1753786264539,-460.0,0.00020821,2]
[375925266,1753786264549,-460.0,0.00020821,2]
[375925267,1753786264559,-4205.18,0.00020821,2]
[375925268,1753786264570,-151.0,0.00020821,2]
[375925269,1753786264579,-460.0,0.00020821,2]
[375925270,1753786264588,-460.0,0.00020821,2]
[375925271,1753786264598,-151.0,0.00020821,2]
[375925272,1753786264607,-460.0,0.00020821,2]
[375925273,1753786264616,-545.41,0.00020821,2]
[375925274,1753786264628,-1649.955994,0.00020821,2]
[375925275,1753786264637,-1649.955994,0.00020821,2]
[375925276,1753786264647,-1655.39,0.00020821,2]
[375925277,1753786264656,-151.0,0.00020821,2]
[375925278,1753786264666,-460.0,0.00020821,2]
[375925279,1753786264675,-460.0,0.00020821,2]
[375925280,1753786264685,-460.0,0.00020821,2]
[375925281,1753786264694,-460.0,0.00020821,2]
[375925282,1753786264704,-460.0,0.00020821,2]
[375925283,1753786264713,-460.0,0.00020821,2]
[375925284,1753786264723,-460.0,0.00020821,2]
[375925285,1753786264732,-683.88,0.00020821,2]
[375925286,1753786264741,-529.29729838,0.00020821,2]
[375925287,1753786264751,-460.0,0.00020821,2]
[375925288,1753786264761,-790.94,0.00020821,2]
[375925289,1753786264771,-460.0,0.00020821,2]
[375925290,1753786264780,-460.0,0.00020821,2]
[375925291,1753786264790,-538.319591,0.00020821,2]
[375925292,1753786264799,-460.0,0.00020821,2]
[375925293,1753786264809,-460.0,0.00020821,2]
[375925294,1753786264819,-539.65,0.00020821,2]
[375925295,1753786264828,-538.319591,0.00020821,2]
[375925296,1753786264838,-151.0,0.00020821,2]
[375925297,1753786264847,-916.43,0.00020821,2]
[375925298,1753786264856,-199.5136134,0.00020821,2]
[375925299,1753786264866,-460.0,0.00020821,2]
[375925300,1753786264877,-658.24,0.00020821,2]
[375925301,1753786264887,-772.21,0.00020821,2]
[375925302,1753786264896,-460.0,0.00020821,2]
[375925303,1753786264905,-460.0,0.00020821,2]
[375925304,1753786264915,-151.0,0.00020821,2]
[375925305,1753786264924,-460.0,0.00020821,2]
[375925306,1753786264934,-463.54,0.00020821,2]
[375925307,1753786264944,-460.0,0.00020821,2]
[375925308,1753786264955,-460.0,0.00020821,2]
[375925309,1753786264965,-460.0,0.00020821,2]
[375925310,1753786264975,-151.0,0.00020821,2]
[375925311,1753786264984,-5310.21,0.00020821,2]
[375925312,1753786264994,-460.0,0.00020821,2]
[375925313,1753786265004,-543.44,0.00020821,2]
[375925314,1753786265013,-460.0,0.00020821,2]
[375925315,1753786265022,-886.02,0.00020821,2]
[375925316,1753786265031,-460.0,0.00020821,2]
[375925317,1753786265041,-151.0,0.00020821,2]
[375925318,1753786265051,-460.0,0.00020821,2]
[375925319,1753786265060,-1215.12,0.00020821,2]
[375925320,1753786265070,-363.28114667,0.00020821,2]
[375925321,1753786265079,-1847.32,0.00020821,2]
[375925322,1753786265088,-460.0,0.00020821,2]
[375925323,1753786265097,-872.66,0.00020821,2]
[375925324,1753786265106,-460.0,0.00020821,2]
[375925325,1753786265116,-460.0,0.00020821,2]
[375925326,1753786265127,-824.86,0.00020821,2]
[375925327,1753786265137,-1143.82,0.00020821,2]
[375925328,1753786265146,-460.0,0.00020821,2]
[375925329,1753786265155,-460.0,0.00020821,2]
[375925330,1753786265164,-460.0,0.00020821,2]
[375925331,1753786265173,-460.0,0.00020821,2]
[375925332,1753786265183,-489.82,0.00020821,2]
[375925333,1753786265192,-618.05,0.00020821,2]
[375925334,1753786265202,-1322.92,0.00020821,2]
[375925335,1753786265310,-460.0,0.00020821,2]
[375925336,1753786265320,-616.15,0.00020821,2]
[375925337,1753786265330,-695.65,0.00020821,2]
[375925338,1753786265349,-590.32,0.00020821,2]
[375925339,1753786265360,-6923.83,0.00020821,2]
[375925340,1753786265371,-399.97137653,0.00020821,2]
[375925341,1753786265381,-460.0,0.00020821,2]
[375925342,1753786265391,-460.0,0.00020821,2]
[375925343,1753786265401,-151.0,0.00020821,2]
[375925344,1753786265411,-460.0,0.00020821,2]
[375925345,1753786265421,-460.0,0.00020821,2]
[375925346,1753786265431,-460.0,0.00020821,2]
[375925347,1753786265440,-4807.24,0.00020821,2]
[375925348,1753786265453,-1054.57,0.00020821,2]
[375925349,1753786265463,-460.0,0.00020821,2]
[375925350,1753786265473,-1367.47,0.00020821,2]
[375925351,1753786265487,-460.0,0.00020821,2]
[375925352,1753786265497,-360.3363871,0.00020821,2]
[375925353,1753786265507,-460.0,0.00020821,2]
[375925354,1753786265517,-1127.35,0.00020821,2]
[375925355,1753786265527,-460.0,0.00020821,2]
[375925356,1753786265538,-1757.04,0.00020821,2]
[375925357,1753786265549,-1087.46,0.00020821,2]
[375925358,1753786265564,-882.88,0.00020821,2]
[375925359,1753786265574,-967.65,0.00020821,2]
[375925360,1753786265585,-1097.94,0.00020821,2]
[375925361,1753786265595,-460.0,0.00020821,2]
[375925362,1753786265604,-460.0,0.00020821,2]
[375925363,1753786265614,-460.0,0.00020821,2]
[375925364,1753786265626,-151.0,0.00020821,2]
[375925365,1753786265636,-460.0,0.00020821,2]
[375925366,1753786265647,-460.0,0.00020821,2]
[375925367,1753786265657,-460.0,0.00020821,2]
[375925368,1753786265667,-460.0,0.00020821,2]
[375925369,1753786265677,-460.0,0.00020821,2]
[375925370,1753786265687,-4403.09,0.00020821,2]
[375925371,1753786265698,-460.0,0.00020821,2]
[375925372,1753786265708,-460.0,0.00020821,2]
[375925373,1753786265719,-1259.84,0.00020821,2]
[375925374,1753786265729,-3860.25,0.00020821,2]
[375925375,1753786265740,-460.0,0.00020821,2]
[375925376,1753786265751,-3629.56,0.00020821,2]
[375925377,1753786265761,-2172.77,0.00020821,2]
[375925378,1753786265771,-5778.25,0.00020821,2]
[375925379,1753786265782,-460.0,0.00020821,2]
[375925380,1753786265792,-13244.83,0.00020821,2]
[375925381,1753786265802,-4434.88,0.00020821,2]
[375925382,1753786265812,-460.0,0.00020821,2]
[375925383,1753786265822,-460.0,0.00020821,2]
[375925384,1753786265832,-460.0,0.00020821,2]
[375925385,1753786265843,-460.0,0.00020821,2]
[375925386,1753786265852,-460.0,0.00020821,2]
[375925387,1753786265863,-460.0,0.00020821,2]
[375925388,1753786265876,-460.0,0.00020821,2]
[375925389,1753786265886,-460.0,0.00020821,2]
[375925390,1753786265896,-460.0,0.00020821,2]
[375925391,1753786265907,-764.02,0.00020821,2]
[375925392,1753786265917,-460.0,0.00020821,2]
[375925393,1753786265927,-460.30695093,0.00020821,2]
[375925394,1753786265936,-519.68,0.00020821,2]
[375925395,1753786265946,-317.47886199,0.00020821,2]
[375925396,1753786265956,-460.0,0.00020821,2]
[375925397,1753786265968,-579.38,0.00020821,2]
[375925398,1753786265979,-1554.77,0.00020821,2]
[375925399,1753786265988,-460.0,0.00020821,2]
[375925400,1753786265998,-532.21,0.00020821,2]
[375925401,1753786266008,-1516.66,0.00020821,2]
[375925402,1753786266017,-460.0,0.00020821,2]
[375925403,1753786266027,-460.0,0.00020821,2]
[375925404,1753786266036,-582.69,0.00020821,2]
[375925405,1753786266045,-460.0,0.00020821,2]
[375925406,1753786266055,-460.0,0.00020821,2]
[375925407,1753786266064,-4089.71,0.00020821,2]
[375925408,1753786266074,-460.0,0.00020821,2]
[375925409,1753786266083,-1608.13,0.00020821,2]
[375925410,1753786266093,-460.0,0.00020821,2]
[375925411,1753786266103,-460.0,0.00020821,2]
[375925412,1753786266112,-460.0,0.00020821,2]
[375925413,1753786266122,-2885.28,0.00020821,2]
[375925414,1753786266132,-1019.55,0.00020821,2]
[375925415,1753786266142,-495.08225442,0.00020821,2]
[375925416,1753786266152,-460.0,0.00020821,2]
[375925417,1753786266162,-1459.12,0.00020821,2]
[375925418,1753786266171,-4196.7,0.00020821,2]
[375925419,1753786266180,-1265.05,0.00020821,2]
[375925420,1753786266190,-794.22,0.00020821,2]
[375925421,1753786266200,-11712.56,0.00020821,2]
[375925422,1753786266210,-460.0,0.00020821,2]
[375925423,1753786266220,-460.0,0.00020821,2]
[375925424,1753786266230,-487.56,0.00020821,2]
[375925425,1753786266240,-460.0,0.00020821,2]
[375925426,1753786266250,-460.0,0.00020821,2]
[375925427,1753786266259,-784.83,0.00020821,2]
[375925428,1753786266270,-725.41,0.00020821,2]
[375925429,1753786266279,-460.0,0.00020821,2]
[375925430,1753786266289,-460.0,0.00020821,2]
[375925431,1753786266299,-1482.43,0.00020821,2]
[375925432,1753786266309,-460.0,0.00020821,2]
[375925433,1753786266319,-926.26,0.00020821,2]
[375925434,1753786266328,-612.57,0.00020821,2]
[375925435,1753786266337,-460.0,0.00020821,2]
[375925436,1753786266347,-159.41753546,0.00020821,2]
[375925437,1753786266356,-463.79140177,0.00020821,2]
[375925438,1753786266366,-1508.23,0.00020821,2]
[375925439,1753786266377,-1388.48,0.00020821,2]
[375925440,1753786266387,-460.0,0.00020821,2]
[375925441,1753786266396,-460.0,0.00020821,2]
[375925442,1753786266406,-460.0,0.00020821,2]
[375925443,1753786266415,-848.07,0.00020821,2]
[375925444,1753786266425,-1491.79,0.00020821,2]
[375925445,1753786266434,-500.0,0.00020822,2]
[375925446,1753786266444,-151.0,0.00020822,2]
[375925447,1753786266453,-500.0,0.00020822,2]
[375925448,1753786266463,-151.0,0.00020822,2]
[375925449,1753786266472,-635.0,0.00020822,2]
[375925450,1753786266483,-151.0,0.00020822,2]
[375925451,1753786266493,-280.82209676,0.00020822,2]
[375925452,1753786266503,-500.0,0.00020822,2]
[375925453,1753786266512,-407.37951896,0.00020822,2]
[375925454,1753786266522,-500.0,0.00020822,2]
[375925455,1753786266531,-152.6791758,0.00020822,2]
[375925456,1753786266541,-451.77019351,0.00020822,2]
[375925457,1753786266550,-500.0,0.00020822,2]
[375925458,1753786266561,-615.2821362,0.00020831,4]
[375925459,1753786266571,-168.0,0.00020857,2]
[375925460,1753786266580,-151.0,0.00020868,2]
[375925461,1753786266590,-151.0,0.00020868,2]
[375925462,1753786266599,-1004.99619514,0.00020868,2]
[375925463,1753786266609,-1500.0,0.00020868,2]
[375925464,1753786266619,-1500.0,0.00020868,2]
[375925465,1753786266631,-382.52835953,0.00020884,2]
[375925466,1753786266640,-168.0,0.00020923,2]
[375925467,1753786266650,-1325.28887741,0.00020942,2]
[375925468,1753786266660,-615.2821362,0.00020969,4]
[375925469,1753786266670,-5888.0,0.00020979,2]
[375925470,1753786266680,-151.0482,0.0002101,2]
[375925471,1753786266690,-5888.0,0.00021016,2]
[375925472,1753786266700,-155.0,0.00021095,2]
[375925473,1753786266710,-202.031419,0.00021095,2]
[375925474,1753786266720,-460.017518,0.00021095,2]
[375925475,1753786266729,-151.0,0.00021095,2]
[375925476,1753786266739,-151.0,0.00021095,2]
[375925477,1753786266749,-151.0,0.00021095,2]
[375925478,1753786266759,-176.994385,0.00021095,2]
[375925479,1753786266768,-176.994385,0.00021095,2]
[375925480,1753786266777,-151.0,0.00021095,2]
[375925481,1753786266787,-151.0,0.00021095,2]
[375925482,1753786266796,-151.0,0.00021095,2]
[375925483,1753786266806,-151.0,0.00021095,2]
[375925484,1753786266815,-151.0,0.00021095,2]
[375925485,1753786266825,-153.797944,0.00021095,2]
[375925486,1753786266834,-460.0,0.00021095,2]
[375925487,1753786266844,-460.0,0.00021095,2]
[375925488,1753786266853,-151.0,0.00021095,2]
[375925489,1753786266863,-151.0,0.00021095,2]
[375925490,1753786266872,-460.0,0.00021095,2]
[375925491,1753786266882,-151.0,0.00021095,2]
[375925492,1753786266892,-151.0,0.00021095,2]
[375925493,1753786266901,-466.52144372,0.00021095,2]
[375925494,1753786266912,-226.923711,0.00021095,2]
[375925495,1753786266921,-412.572703,0.00021095,2]
[375925496,1753786266931,-412.572703,0.00021095,2]
[375925497,1753786266941,-460.0,0.00021095,2]
[375925498,1753786266951,-460.0,0.00021095,2]
[375925499,1753786266960,-460.0,0.00021095,2]
[375925500,1753786266969,-460.0,0.00021095,2]
[375925501,1753786266979,-294.725892,0.00021095,2]
[375925502,1753786266988,-294.725892,0.00021095,2]
[375925503,1753786266998,-194.116374,0.00021095,2]
[375925504,1753786267007,-194.116374,0.00021095,2]
[375925505,1753786267017,-151.0,0.00021095,2]
[375925506,1753786267026,-460.0,0.00021095,2]
[375925507,1753786267035,-460.0,0.00021095,2]
[375925508,1753786267044,-460.0,0.00021095,2]
[375925509,1753786267053,-558.73,0.00021095,2]
[375925510,1753786267063,-432.54197,0.00021095,2]
[375925511,1753786267072,-432.54197,0.00021095,2]
[375925512,1753786267081,-460.0,0.00021095,2]
[375925513,1753786267091,-460.0,0.00021095,2]
[375925514,1753786267100,-151.0,0.00021095,2]
[375925515,1753786267110,-325.000115,0.00021095,2]
[375925516,1753786267119,-325.000115,0.00021095,2]
[375925517,1753786267130,-460.0,0.00021095,2]
[375925518,1753786267139,-460.0,0.00021095,2]
[375925519,1753786267148,-641.17,0.00021095,2]
[375925520,1753786267157,-460.0,0.00021095,2]
[375925521,1753786267166,-354.950465,0.00021095,2]
[375925522,1753786267176,-354.950465,0.00021095,2]
[375925523,1753786267185,-564.54,0.00021095,2]
[375925524,1753786267194,-151.0,0.00021095,2]
[375925525,1753786267309,-460.0,0.00021095,2]
[375925526,1753786267339,-460.0,0.00021095,2]
[375925527,1753786267349,-151.0,0.00021095,2]
[375925528,1753786267358,-460.0,0.00021095,2]
[375925529,1753786267368,-460.0,0.00021095,2]
[375925530,1753786267379,-150.194334,0.00021095,2]
[375925531,1753786267389,-259.50358371,0.00021095,2]
[375925532,1753786267398,-460.0,0.00021095,2]
[375925533,1753786267408,-476.94476119,0.00021095,2]
[375925534,1753786267417,-460.0,0.00021095,2]
[375925535,1753786267426,-205.13587426,0.00021095,2]
[375925536,1753786267435,-3330.66,0.00021095,2]
[375925537,1753786267444,-460.0,0.00021095,2]
[375925538,1753786267453,-460.0,0.00021095,2]
[375925539,1753786267463,-889.55,0.00021095,2]
[375925540,1753786267472,-1469.59,0.00021095,2]
[375925541,1753786267484,-151.0,0.00021095,2]
[375925542,1753786267494,-623.86,0.00021095,2]
[375925543,1753786267503,-631.4,0.00021095,2]
[375925544,1753786267513,-460.0,0.00021095,2]
[375925545,1753786267523,-460.0,0.00021095,2]
[375925546,1753786267532,-460.0,0.00021095,2]
[375925547,1753786267542,-460.0,0.00021095,2]
[375925548,1753786267552,-460.0,0.00021095,2]
[375925549,1753786267563,-460.0,0.00021095,2]
[375925550,1753786267572,-460.0,0.00021095,2]
[375925551,1753786267582,-4205.18,0.00021095,2]
[375925552,1753786267591,-1730.549651,0.00021095,2]
[375925553,1753786267601,-151.0,0.00021095,2]
[375925554,1753786267611,-460.0,0.00021095,2]
[375925555,1753786267620,-1730.549651,0.00021095,2]
[375925556,1753786267630,-151.0,0.00021095,2]
[375925557,1753786267639,-460.0,0.00021095,2]
[375925558,1753786267648,-545.41,0.00021095,2]
[375925559,1753786267658,-1655.39,0.00021095,2]
[375925560,1753786267667,-151.0,0.00021095,2]
[375925561,1753786267676,-460.0,0.00021095,2]
[375925562,1753786267686,-460.0,0.00021095,2]
[375925563,1753786267696,-460.0,0.00021095,2]
[375925564,1753786267705,-460.0,0.00021095,2]
[375925565,1753786267715,-460.0,0.00021095,2]
[375925566,1753786267724,-460.0,0.00021095,2]
[375925567,1753786267734,-460.0,0.00021095,2]
[375925568,1753786267743,-683.88,0.00021095,2]
[375925569,1753786267753,-460.0,0.00021095,2]
[375925570,1753786267762,-790.94,0.00021095,2]
[375925571,1753786267773,-460.0,0.00021095,2]
[375925572,1753786267783,-460.0,0.00021095,2]
[375925573,1753786267793,-538.319591,0.00021095,2]
[375925574,1753786267802,-460.0,0.00021095,2]
[375925575,1753786267811,-460.0,0.00021095,2]
[375925576,1753786267821,-539.65,0.00021095,2]
[375925577,1753786267831,-538.319591,0.00021095,2]
[375925578,1753786267840,-151.0,0.00021095,2]
[375925579,1753786267850,-916.43,0.00021095,2]
[375925580,1753786267859,-460.0,0.00021095,2]
[375925581,1753786267869,-658.24,0.00021095,2]
[375925582,1753786267880,-772.21,0.00021095,2]
[375925583,1753786267889,-460.0,0.00021095,2]
[375925584,1753786267899,-460.0,0.00021095,2]
[375925585,1753786267908,-151.0,0.00021095,2]
[375925586,1753786267918,-460.0,0.00021095,2]
[375925587,1753786267928,-463.54,0.00021095,2]
[375925588,1753786267938,-460.0,0.00021095,2]
[375925589,1753786267948,-460.0,0.00021095,2]
[375925590,1753786267958,-460.0,0.00021095,2]
[375925591,1753786267968,-5310.21,0.00021095,2]
[375925592,1753786267977,-467.14160796,0.00021095,2]
[375925593,1753786267987,-543.44,0.00021095,2]
[375925594,1753786267996,-460.0,0.00021095,2]
[375925595,1753786268005,-886.02,0.00021095,2]
[375925596,1753786268015,-460.0,0.00021095,2]
[375925597,1753786268024,-460.0,0.00021095,2]
[375925598,1753786268033,-1215.12,0.00021095,2]
[375925599,1753786268043,-1847.32,0.00021095,2]
[375925600,1753786268053,-460.0,0.00021095,2]
[375925601,1753786268062,-872.66,0.00021095,2]
[375925602,1753786268072,-460.0,0.00021095,2]
[375925603,1753786268081,-460.0,0.00021095,2]
[375925604,1753786268091,-824.86,0.00021095,2]
[375925605,1753786268100,-1143.82,0.00021095,2]
[375925606,1753786268110,-460.0,0.00021095,2]
[375925607,1753786268120,-460.0,0.00021095,2]
[375925608,1753786268130,-460.0,0.00021095,2]
[375925609,1753786268140,-460.0,0.00021095,2]
[375925610,1753786268150,-489.82,0.00021095,2]
[375925611,1753786268160,-618.05,0.00021095,2]
[375925612,1753786268170,-1322.92,0.00021095,2]
[375925613,1753786268180,-460.0,0.00021095,2]
[375925614,1753786268189,-616.15,0.00021095,2]
[375925615,1753786268199,-695.65,0.00021095,2]
[375925616,1753786268208,-590.32,0.00021095,2]
[375925617,1753786268217,-6923.83,0.00021095,2]
[375925618,1753786268227,-460.0,0.00021095,2]
[375925619,1753786268237,-460.0,0.00021095,2]
[375925620,1753786268247,-460.0,0.00021095,2]
[375925621,1753786268256,-460.0,0.00021095,2]
[375925622,1753786268266,-460.0,0.00021095,2]
[375925623,1753786268275,-4807.24,0.00021095,2]
[375925624,1753786268285,-1054.57,0.00021095,2]
[375925625,1753786268294,-460.0,0.00021095,2]
[375925626,1753786268304,-1367.47,0.00021095,2]
[375925627,1753786268314,-392.7834124,0.00021095,2]
[375925628,1753786268323,-460.0,0.00021095,2]
[375925629,1753786268333,-1127.35,0.00021095,2]
[375925630,1753786268342,-460.0,0.00021095,2]
[375925631,1753786268352,-1757.04,0.00021095,2]
[375925632,1753786268362,-1087.46,0.00021095,2]
[375925633,1753786268373,-882.88,0.00021095,2]
[375925634,1753786268382,-1097.94,0.00021095,2]
[375925635,1753786268391,-967.65,0.00021095,2]
[375925636,1753786268401,-460.0,0.00021095,2]
[375925637,1753786268410,-460.0,0.00021095,2]
[375925638,1753786268420,-460.0,0.00021095,2]
[375925639,1753786268429,-151.0,0.00021095,2]
[375925640,1753786268439,-460.0,0.00021095,2]
[375925641,1753786268449,-460.0,0.00021095,2]
[375925642,1753786268458,-460.0,0.00021095,2]
[375925643,1753786268467,-460.0,0.00021095,2]
[375925644,1753786268477,-4403.09,0.00021095,2]
[375925645,1753786268491,-460.0,0.00021095,2]
[375925646,1753786268501,-460.0,0.00021095,2]
[375925647,1753786268510,-1259.84,0.00021095,2]
[375925648,1753786268519,-3860.25,0.00021095,2]
[375925649,1753786268531,-460.0,0.00021095,2]
[375925650,1753786268542,-3629.56,0.00021095,2]
[375925651,1753786268552,-2172.77,0.00021095,2]
[375925652,1753786268564,-5778.25,0.00021095,2]
[375925653,1753786268574,-460.0,0.00021095,2]
[375925654,1753786268584,-13244.83,0.00021095,2]
[375925655,1753786268593,-4434.88,0.00021095,2]
[375925656,1753786268604,-460.0,0.00021095,2]
[375925657,1753786268615,-460.0,0.00021095,2]
[375925658,1753786268626,-460.0,0.00021095,2]
[375925659,1753786268635,-460.0,0.00021095,2]
[375925660,1753786268646,-460.0,0.00021095,2]
[375925661,1753786268656,-460.0,0.00021095,2]
[375925662,1753786268665,-460.0,0.00021095,2]
[375925663,1753786268675,-151.0,0.00021095,2]
[375925664,1753786268685,-460.0,0.00021095,2]
[375925665,1753786268696,-764.02,0.00021095,2]
[375925666,1753786268706,-460.0,0.00021095,2]
[375925667,1753786268716,-519.68,0.00021095,2]
[375925668,1753786268726,-460.0,0.00021095,2]
[375925669,1753786268735,-579.38,0.00021095,2]
[375925670,1753786268745,-1554.77,0.00021095,2]
[375925671,1753786268754,-460.0,0.00021095,2]
[375925672,1753786268764,-532.21,0.00021095,2]
[375925673,1753786268774,-1516.66,0.00021095,2]
[375925674,1753786268784,-460.0,0.00021095,2]
[375925675,1753786268794,-460.0,0.00021095,2]
[375925676,1753786268803,-582.69,0.00021095,2]
[375925677,1753786268812,-362.33050881,0.00021095,2]
[375925678,1753786268821,-460.0,0.00021095,2]
[375925679,1753786268831,-4089.71,0.00021095,2]
[375925680,1753786268840,-460.0,0.00021095,2]
[375925681,1753786268850,-1608.13,0.00021095,2]
[375925682,1753786268859,-460.0,0.00021095,2]
[375925683,1753786268870,-460.0,0.00021095,2]
[375925684,1753786268880,-2885.28,0.00021095,2]
[375925685,1753786268889,-1019.55,0.00021095,2]
[375925686,1753786268898,-460.0,0.00021095,2]
[375925687,1753786268908,-151.0,0.00021095,2]
[375925688,1753786268918,-1459.12,0.00021095,2]
[375925689,1753786268927,-4196.7,0.00021095,2]
[375925690,1753786268937,-1265.05,0.00021095,2]
[375925691,1753786268946,-794.22,0.00021095,2]
[375925692,1753786268956,-11712.56,0.00021095,2]
[375925693,1753786268966,-460.0,0.00021095,2]
[375925694,1753786268976,-460.0,0.00021095,2]
[375925695,1753786268985,-487.56,0.00021095,2]
[375925696,1753786268995,-460.0,0.00021095,2]
[375925697,1753786269004,-460.0,0.00021095,2]
[375925698,1753786269015,-784.83,0.00021095,2]
[375925699,1753786269025,-725.41,0.00021095,2]
[375925700,1753786269121,-460.0,0.00021095,2]
[375925701,1753786269138,-460.0,0.00021095,2]
[375925702,1753786269148,-1482.43,0.00021095,2]
[375925703,1753786269158,-483.81366191,0.00021095,2]
[375925704,1753786269168,-926.26,0.00021095,2]
[375925705,1753786269178,-612.57,0.00021095,2]
[375925706,1753786269189,-460.0,0.00021095,2]
[375925707,1753786269199,-1508.23,0.00021095,2]
[375925708,1753786269210,-1388.48,0.00021095,2]